fUST/lending_fUST_20250516
["ID","MTS","AMOUNT","RATE_DAILY","PERIOD"]
[361233769,1747378248619,-153.097539,0.00013698,2]
[361233770,1747378248629,-153.097539,0.00013698,2]
[361233771,1747378248638,-153.097539,0.00013698,2]
[361233772,1747378248648,-153.097539,0.00013698,2]
[361233773,1747378248658,-153.097539,0.00013698,2]
[361233774,1747378248667,-153.097539,0.00013698,2]
[361233775,1747378248677,-153.097539,0.00013698,2]
[361233776,1747378248688,-153.097539,0.00013698,2]
[361233777,1747378248697,-153.097539,0.00013698,2]
[361233778,1747378248707,-450.0,0.00013698,2]
[361233779,1747378248717,-153.097539,0.00013698,2]
[361233780,1747378248727,-450.0,0.00013698,2]
[361233781,1747378248737,-561.75,0.00013698,2]
[361233782,1747378248747,-1272.69,0.00013698,2]
[361233783,1747378248757,-450.0,0.00013698,2]
[361233784,1747378248767,-450.0,0.00013698,2]
[361233785,1747378248778,-450.0,0.00013698,2]
[361233786,1747378248788,-400.0,0.00013698,2]
[361233787,1747378248798,-450.0,0.00013698,2]
[361233788,1747378248808,-400.0,0.00013698,2]
[361233789,1747378248818,-450.0,0.00013698,2]
[361233790,1747378248829,-450.0,0.00013698,2]
[361233791,1747378248839,-450.0,0.00013698,2]
[361233792,1747378248849,-450.0,0.00013698,2]
[361233793,1747378248860,-400.34203751,0.00013698,2]
[361233794,1747378248870,-909.46,0.00013698,2]
[361233795,1747378248880,-450.0,0.00013698,2]
[361233796,1747378248891,-378.07110474,0.00013698,2]
[361233797,1747378248901,-467.59,0.00013698,2]
[361233798,1747378248911,-450.0,0.00013698,2]
[361233799,1747378248921,-402.57439635,0.00013698,2]
[361233800,1747378248931,-151.0,0.00013698,2]
[361233801,1747378248941,-249.15449928,0.00013698,2]
[361233802,1747378248951,-400.0,0.00013698,2]
[361233803,1747378248960,-450.0,0.00013698,2]
[361233804,1747378248970,-455.84,0.00013698,2]
[361233805,1747378248981,-450.0,0.00013698,2]
[361233806,1747378248991,-400.0,0.00013698,2]
[361233807,1747378249001,-400.0,0.00013698,2]
[361233808,1747378249011,-450.0,0.00013698,2]
[361233809,1747378249022,-5359.72,0.00013698,2]
[361233810,1747378249031,-450.0,0.00013698,2]
[361233811,1747378249041,-450.0,0.00013698,2]
[361233812,1747378249053,-2384.18,0.00013698,2]
[361233813,1747378249062,-450.0,0.00013698,2]
[361233814,1747378249072,-450.0,0.00013698,2]
[361233815,1747378249084,-401.11104068,0.00013698,2]
[361233816,1747378249095,-1127.61,0.00013698,2]
[361233817,1747378249105,-450.0,0.00013698,2]
[361233818,1747378249115,-489.79383217,0.00013698,2]
[361233819,1747378249124,-1069.22,0.00013698,2]
[361233820,1747378249134,-1194.59,0.00013698,2]
[361233821,1747378249143,-1380.07,0.00013698,2]
[361233822,1747378249152,-639.36,0.00013698,2]
[361233823,1747378249162,-355.244276,0.00013698,2]
[361233824,1747378249172,-450.0,0.00013698,2]
[361233825,1747378249181,-450.0,0.00013698,2]
[361233826,1747378249191,-980.81,0.00013698,2]
[361233827,1747378249201,-1344.7,0.00013698,2]
[361233828,1747378249210,-450.0,0.00013698,2]
[361233829,1747378249220,-450.0,0.00013698,2]
[361233830,1747378249229,-151.0,0.00013698,2]
[361233831,1747378249238,-1322.71,0.00013698,2]
[361233832,1747378249248,-450.0,0.00013698,2]
[361233833,1747378249258,-2503.86,0.00013698,2]
[361233834,1747378249268,-782.66,0.00013698,2]
[361233835,1747378249277,-5591.11,0.00013698,2]
[361233836,1747378249287,-450.0,0.00013698,2]
[361233837,1747378249297,-151.0,0.00013698,2]
[361233838,1747378249308,-151.0,0.00013698,2]
[361233839,1747378249318,-151.0,0.00013698,2]
[361233840,1747378249327,-151.0,0.00013698,2]
[361233841,1747378249337,-1246.43,0.00013698,2]
[361233842,1747378249346,-151.0,0.00013698,2]
[361233843,1747378249355,-151.0,0.00013698,2]
[361233844,1747378249365,-197.928176,0.00013698,2]
[361233845,1747378249374,-765.85,0.00013698,2]
[361233846,1747378249384,-450.0,0.00013698,2]
[361233847,1747378249393,-450.0,0.00013698,2]
[361233848,1747378249402,-1205.34,0.00013698,2]
[361233849,1747378249412,-557.41,0.00013698,2]
[361233850,1747378249422,-450.0,0.00013698,2]
[361233851,1747378249431,-450.0,0.00013698,2]
[361233852,1747378249440,-535.46,0.00013698,2]
[361233853,1747378249449,-450.0,0.00013698,2]
[361233854,1747378249459,-450.0,0.00013698,2]
[361233855,1747378249469,-1991.28,0.00013698,2]
[361233856,1747378249479,-450.0,0.00013698,2]
[361233857,1747378249488,-450.0,0.00013698,2]
[361233858,1747378249497,-450.0,0.00013698,2]
[361233859,1747378249507,-718.5,0.00013698,2]
[361233860,1747378249516,-503.19,0.00013698,2]
[361233861,1747378249526,-5116.31,0.00013698,2]
[361233862,1747378249535,-450.0,0.00013698,2]
[361233863,1747378249544,-800.89,0.00013698,2]
[361233864,1747378249555,-746.18,0.00013698,2]
[361233865,1747378249566,-424.49286855,0.00013698,2]
[361233866,1747378249575,-178.11,0.00013698,2]
[361233867,1747378249584,-595.53,0.00013698,2]
[361233868,1747378249594,-450.0,0.00013698,2]
[361233869,1747378249603,-450.0,0.00013698,2]
[361233870,1747378249613,-450.0,0.00013698,2]
[361233871,1747378249622,-450.0,0.00013698,2]
[361233872,1747378249633,-646.5,0.00013698,2]
[361233873,1747378249643,-450.0,0.00013698,2]
[361233874,1747378249653,-3866.47,0.00013698,2]
[361233875,1747378249663,-167.81000839,0.00013698,2]
[361233876,1747378249673,-1053.29,0.00013698,2]
[361233877,1747378249682,-450.0,0.00013698,2]
[361233878,1747378249691,-786.07,0.00013698,2]
[361233879,1747378249701,-865.15,0.00013698,2]
[361233880,1747378249711,-450.0,0.00013698,2]
[361233881,1747378249720,-450.0,0.00013698,2]
[361233882,1747378249729,-2375.96,0.00013698,2]
[361233883,1747378249738,-1097.57,0.00013698,2]
[361233884,1747378249748,-450.0,0.00013698,2]
[361233885,1747378249757,-534.08,0.00013698,2]
[361233886,1747378249767,-1508.07,0.00013698,2]
[361233887,1747378249777,-605.42,0.00013698,2]
[361233888,1747378249787,-450.0,0.00013698,2]
[361233889,1747378249797,-760.25,0.00013698,2]
[361233890,1747378249808,-450.0,0.00013698,2]
[361233891,1747378249819,-1255.07,0.00013698,2]
[361233892,1747378249830,-450.0,0.00013698,2]
[361233893,1747378249840,-450.0,0.00013698,2]
[361233894,1747378249851,-400.81666946,0.00013698,2]
[361233895,1747378249862,-2164.52,0.00013698,2]
[361233896,1747378249871,-1371.86,0.00013698,2]
[361233897,1747378249881,-450.0,0.00013698,2]
[361233898,1747378249890,-647.51,0.00013698,2]
[361233899,1747378249900,-3105.46,0.00013698,2]
[361233900,1747378249909,-450.0,0.00013698,2]
[361233901,1747378249919,-409.4078107,0.00013698,2]
[361233902,1747378249928,-402.92808367,0.00013698,2]
[361233903,1747378249938,-2440.32,0.00013698,2]
[361233904,1747378249947,-874.4,0.00013698,2]
[361233905,1747378249956,-2040.9,0.00013698,2]
[361233906,1747378249967,-797.77,0.00013698,2]
[361233907,1747378249976,-450.0,0.00013698,2]
[361233908,1747378249986,-711.32,0.00013698,2]
[361233909,1747378249996,-450.0,0.00013698,2]
[361233910,1747378250005,-509.8,0.00013698,2]
[361233911,1747378250015,-1144.39,0.00013698,2]
[361233912,1747378250024,-450.0,0.00013698,2]
[361233913,1747378250034,-450.0,0.00013698,2]
[361233914,1747378250044,-450.0,0.00013698,2]
[361233915,1747378250055,-450.0,0.00013698,2]
[361233916,1747378250064,-873.83,0.00013698,2]
[361233917,1747378250073,-450.0,0.00013698,2]
[361233918,1747378250083,-1141.85,0.00013698,2]
[361233919,1747378250092,-530.740653,0.00013698,2]
[361233920,1747378250102,-530.740653,0.00013698,2]
[361233921,1747378250112,-530.740653,0.00013698,2]
[361233922,1747378250121,-450.0,0.00013698,2]
[361233923,1747378250130,-530.740653,0.00013698,2]
[361233924,1747378250139,-530.740653,0.00013698,2]
[361233925,1747378250148,-530.740653,0.00013698,2]
[361233926,1747378250157,-530.740653,0.00013698,2]
[361233927,1747378250166,-450.0,0.00013698,2]
[361233928,1747378250175,-530.740653,0.00013698,2]
[361233929,1747378250184,-530.740653,0.00013698,2]
[361233930,1747378250193,-530.740653,0.00013698,2]
[361233931,1747378250202,-530.740653,0.00013698,2]
[361233932,1747378250212,-530.740653,0.00013698,2]
[361233933,1747378250222,-530.740653,0.00013698,2]
[361233934,1747378250231,-530.740653,0.00013698,2]
[361233935,1747378250240,-530.740653,0.00013698,2]
[361233936,1747378250249,-530.740655,0.00013698,2]
[361233937,1747378250258,-978.75,0.00013698,2]
[361233938,1747378250268,-1526.35,0.00013698,2]
[361233939,1747378250277,-267.967079,0.00013698,2]
[361233940,1747378250286,-267.967079,0.00013698,2]
[361233941,1747378250296,-267.967079,0.00013698,2]
[361233942,1747378250306,-267.967079,0.00013698,2]
[361233943,1747378250315,-267.967079,0.00013698,2]
[361233944,1747378250325,-267.967079,0.00013698,2]
[361233945,1747378250335,-267.967079,0.00013698,2]
[361233946,1747378250344,-267.967079,0.00013698,2]
[361233947,1747378250353,-450.0,0.00013698,2]
[361233948,1747378250362,-450.0,0.00013698,2]
[361233949,1747378250372,-2113.59,0.00013698,2]
[361233950,1747378250382,-1085.73,0.00013698,2]
[361233951,1747378250391,-450.0,0.00013698,2]
[361233952,1747378250400,-267.967079,0.00013698,2]
[361233953,1747378250409,-267.967079,0.00013698,2]
[361233954,1747378250419,-808.93,0.00013698,2]
[361233955,1747378250428,-267.967079,0.00013698,2]
[361233956,1747378250437,-267.967079,0.00013698,2]
[361233957,1747378250448,-267.967079,0.00013698,2]
[361233958,1747378250458,-267.967079,0.00013698,2]
[361233959,1747378250467,-267.967079,0.00013698,2]
[361233960,1747378250476,-267.967077,0.00013698,2]
[361233961,1747378250487,-3416.48,0.00013698,2]
[361233962,1747378250495,-450.0,0.00013698,2]
[361233963,1747378250505,-561.60000001,0.00013698,2]
[361233964,1747378250515,-450.0,0.00013698,2]
[361233965,1747378250524,-450.0,0.00013698,2]
[361233966,1747378250534,-481.290383,0.00013699,2]
[361233967,1747378250544,-151.0,0.00013699,2]
[361233968,1747378250554,-151.0,0.00013699,2]
[361233969,1747378250563,-151.0,0.00013699,2]
[361233970,1747378250573,-151.0,0.00013699,2]
[361233971,1747378250582,-151.0,0.00013699,2]
[361233972,1747378250593,-151.0,0.00013699,2]
[361233973,1747378250602,-152.0,0.00013699,2]
[361233974,1747378250611,-249.66148038,0.00013699,2]
[361233975,1747378250621,-152.0,0.00013699,2]
[361233976,1747378250634,-152.0,0.00013699,2]
[361233977,1747378250643,-152.0,0.00013699,2]
[361233978,1747378250653,-152.0,0.00013699,2]
[361233979,1747378250662,-152.0,0.00013699,2]
[361233980,1747378250839,-152.0,0.00013699,2]
[361233981,1747378250850,-152.0,0.00013699,2]
[361233982,1747378250861,-152.0,0.00013699,2]
[361233983,1747378250871,-152.0,0.00013699,2]
[361233984,1747378250881,-152.0,0.00013699,2]
[361233985,1747378250890,-152.0,0.00013699,2]
[361233986,1747378250900,-152.0,0.00013699,2]
[361233987,1747378250910,-152.0,0.00013699,2]
[361233988,1747378250920,-152.0,0.00013699,2]
[361233989,1747378250929,-152.0,0.00013699,2]
[361233990,1747378250940,-152.0,0.00013699,2]
[361233991,1747378250949,-152.0,0.00013699,2]
[361233992,1747378250959,-152.0,0.00013699,2]
[361233993,1747378250969,-152.0,0.00013699,2]
[361233994,1747378250980,-152.0,0.00013699,2]
[361233995,1747378250990,-152.0,0.00013699,2]
[361233996,1747378251000,-152.0,0.00013699,2]
[361233997,1747378251010,-152.0,0.00013699,2]
[361233998,1747378251019,-152.0,0.00013699,2]
[361233999,1747378251030,-152.0,0.00013699,2]
[361234000,1747378251040,-152.0,0.00013699,2]
[361234001,1747378251050,-152.0,0.00013699,2]
[361234002,1747378251062,-152.0,0.00013699,2]
[361234003,1747378251071,-500.0,0.00013699,2]
[361234004,1747378251082,-233.56012444,0.00013699,2]
[361234005,1747378251092,-500.0,0.00013699,2]
[361234006,1747378251102,-500.0,0.00013699,2]
[361234007,1747378251111,-156.14960522,0.00013699,2]
[361234008,1747378251121,-500.0,0.00013699,2]
[361234009,1747378251131,-500.0,0.00013699,2]
[361234010,1747378251140,-500.0,0.00013699,2]
[361234011,1747378251149,-500.0,0.00013699,2]
[361234012,1747378251159,-500.0,0.00013699,2]
[361234013,1747378251168,-500.0,0.00013699,2]
[361234014,1747378251178,-500.0,0.00013699,2]
[361234015,1747378251188,-500.0,0.00013699,2]
[361234016,1747378251198,-500.0,0.00013699,2]
[361234017,1747378251210,-464.80652283,0.00013699,2]
[361234018,1747378251220,-1142.06914609,0.00013735,2]
[361234019,1747378251230,-4701.95968324,0.00013764,2]
[361234020,1747378251239,-871.065845,0.00013765,2]
[361234021,1747378251249,-500.95111943,0.0001378,2]
[361234022,1747378251259,-1142.06914609,0.00013804,2]
[361234023,1747378251268,-546.0,0.0001383,2]
[361234024,1747378251278,-2265.806,0.0001383,2]
[361234025,1747378251287,-715.395,0.0001383,2]
[361234026,1747378251297,-151.0,0.00013835,2]
[361234027,1747378251308,-151.0,0.00013835,2]
[361234028,1747378251317,-151.0,0.00013835,2]
[361234029,1747378251327,-305.720041,0.00013835,2]
[361234030,1747378251336,-432.71,0.00013835,2]
[361234031,1747378251345,-450.0,0.00013835,2]
[361234032,1747378251356,-450.0,0.00013835,2]
[361234033,1747378251365,-450.0,0.00013835,2]
[361234034,1747378251374,-350.0,0.00013835,2]
[361234035,1747378251384,-205.047,0.00013835,2]
[361234036,1747378251394,-450.0,0.00013835,2]
[361234037,1747378251403,-450.0,0.00013835,2]
[361234038,1747378251413,-591.3,0.00013835,2]
[361234039,1747378251422,-251.38,0.00013835,2]
[361234040,1747378251432,-354.54866965,0.00013835,2]
[361234041,1747378251443,-365.53762506,0.00013835,2]
[361234042,1747378251452,-678.35,0.00013835,2]
[361234043,1747378251462,-500.33,0.00013835,2]
[361234044,1747378251471,-450.0,0.00013835,2]
[361234045,1747378251480,-450.0,0.00013835,2]
[361234046,1747378251489,-450.0,0.00013835,2]
[361234047,1747378251499,-450.0,0.00013835,2]
[361234048,1747378251508,-450.0,0.00013835,2]
[361234049,1747378251517,-450.0,0.00013835,2]
[361234050,1747378251526,-450.0,0.00013835,2]
[361234051,1747378251535,-450.0,0.00013835,2]
[361234052,1747378251545,-450.0,0.00013835,2]
[361234053,1747378251554,-662.63,0.00013835,2]
[361234054,1747378251564,-450.0,0.00013835,2]
[361234055,1747378251573,-450.0,0.00013835,2]
[361234056,1747378251583,-450.0,0.00013835,2]
[361234057,1747378251592,-450.0,0.00013835,2]
[361234058,1747378251601,-450.0,0.00013835,2]
[361234059,1747378251611,-450.0,0.00013835,2]
[361234060,1747378251620,-450.0,0.00013835,2]
[361234061,1747378251630,-450.0,0.00013835,2]
[361234062,1747378251639,-450.0,0.00013835,2]
[361234063,1747378251649,-450.0,0.00013835,2]
[361234064,1747378251659,-450.0,0.00013835,2]
[361234065,1747378251669,-450.0,0.00013835,2]
[361234066,1747378251678,-1069.46,0.00013835,2]
[361234067,1747378251688,-450.0,0.00013835,2]
[361234068,1747378251698,-587.52,0.00013835,2]
[361234069,1747378251708,-542.52,0.00013835,2]
[361234070,1747378251718,-450.0,0.00013835,2]
[361234071,1747378251727,-574.2,0.00013835,2]
[361234072,1747378251738,-450.0,0.00013835,2]
[361234073,1747378251747,-450.0,0.00013835,2]
[361234074,1747378251757,-561.75,0.00013835,2]
[361234075,1747378251766,-1272.69,0.00013835,2]
[361234076,1747378251776,-170.59624202,0.00013835,2]
[361234118,1747379432161,-507.17526308,0.00012507,2]
[361234126,1747379432360,-4492.82473692,0.00012507,2]
[361234127,1747379432370,-2001.6428877,0.00012761,2]
[361234128,1747379432381,-624.72885477,0.00013558,2]
[361234129,1747379432391,-1200.0,0.00013595,2]
[361234130,1747379432400,-300.0,0.00013595,2]
[361234131,1747379432410,-300.0,0.00013596,2]
[361234132,1747379432419,-300.0,0.00013596,2]
[361234133,1747379432428,-300.0,0.00013596,2]
[361234134,1747379432437,-300.0,0.00013596,2]
[361234135,1747379432446,-178.2497916,0.00013597,2]
[361234136,1747379432456,-1142.06914609,0.00013598,2]
[361234137,1747379432466,-160.0,0.00013625,2]
[361234138,1747379432475,-12625.42653527,0.00013625,2]
[361234139,1747379432485,-164.038,0.00013696,2]
[361234140,1747379432494,-500.0,0.00013697,2]
[361234141,1747379432504,-500.0,0.00013697,2]
[361234142,1747379432513,-500.0,0.00013697,2]
[361234143,1747379432523,-500.0,0.00013697,2]
[361234144,1747379432533,-500.0,0.00013697,2]
[361234145,1747379432542,-500.0,0.00013697,2]
[361234146,1747379432552,-251.83252202,0.00013697,2]
[361234147,1747379432562,-451.08746306,0.00013697,2]
[361234148,1747379432571,-500.0,0.00013697,2]
[361234149,1747379432581,-500.0,0.00013697,2]
[361234150,1747379432591,-200.0,0.00013697,2]
[361234151,1747379432600,-500.0,0.00013697,2]
[361234152,1747379432609,-500.0,0.00013697,2]
[361234153,1747379432619,-500.0,0.00013697,2]
[361234154,1747379432630,-500.0,0.00013697,2]
[361234155,1747379432639,-252.43482725,0.00013697,2]
[361234156,1747379432649,-500.0,0.00013697,2]
[361234157,1747379432658,-500.0,0.00013697,2]
[361234158,1747379432667,-500.0,0.00013697,2]
[361234159,1747379432677,-500.0,0.00013697,2]
[361234160,1747379432686,-500.0,0.00013697,2]
[361234161,1747379432696,-500.0,0.00013697,2]
[361234162,1747379432705,-500.0,0.00013697,2]
[361234163,1747379432715,-500.0,0.00013697,2]
[361234164,1747379432725,-384.01325692,0.00013697,2]
[361234165,1747379432735,-500.0,0.00013697,2]
[361234166,1747379432745,-500.0,0.00013697,2]
[361234167,1747379432754,-500.0,0.00013697,2]
[361234168,1747379432763,-160.21860061,0.00013697,2]
[361234169,1747379432772,-500.0,0.00013697,2]
[361234170,1747379432781,-500.0,0.00013697,2]
[361234171,1747379432790,-500.0,0.00013697,2]
[361234172,1747379432799,-500.0,0.00013697,2]
[361234173,1747379432808,-500.0,0.00013697,2]
[361234174,1747379432816,-500.0,0.00013697,2]
[361234175,1747379432826,-212.95961842,0.00013697,2]
[361234176,1747379432835,-500.0,0.00013697,2]
[361234177,1747379432844,-500.0,0.00013697,2]
[361234178,1747379432854,-500.0,0.00013697,2]
[361234179,1747379432865,-633.73163574,0.00013697,2]
[361234180,1747379432874,-500.0,0.00013697,2]
[361234181,1747379432884,-500.0,0.00013697,2]
[361234182,1747379432893,-500.0,0.00013697,2]
[361234183,1747379432904,-500.0,0.00013697,2]
[361234184,1747379432918,-500.0,0.00013697,2]
[361234185,1747379432928,-494.6777764,0.00013697,2]
[361234186,1747379432937,-500.0,0.00013697,2]
[361234187,1747379432946,-500.0,0.00013697,2]
[361234188,1747379432956,-500.0,0.00013697,2]
[361234189,1747379432965,-500.0,0.00013697,2]
[361234190,1747379432974,-450.0,0.00013698,2]
[361234191,1747379432984,-24352.01824621,0.00013698,5]
[361234246,1747379440517,-527.69100549,0.00013561,2]
[361234441,1747380249238,155.02129921,7.5e-07,2]
[361234442,1747380249460,155.02129921,7.5e-07,2]
[361234478,1747380632492,-628.45,0.00011962,2]
[361234480,1747380632504,-1218.06454826,0.00011962,2]
[361234557,1747380638252,-3153.48545174,0.00011962,2]
[361234558,1747380638261,-197.32172476,0.00012329,2]
[361234559,1747380638279,-252.43827524,0.00012329,2]
[361234561,1747380638288,-164.038,0.00013424,2]
[361234562,1747380638298,-157.828058,0.00013558,2]
[361234564,1747380638307,-155.674134,0.00013558,2]
[361234566,1747380638316,-155.96856765,0.00013597,2]
[361234568,1747380638329,-300.0,0.00013694,2]
[361234570,1747380638338,-500.0,0.00013695,2]
[361234571,1747380638348,-361.38164747,0.00013695,2]
[361234572,1747380638357,-287.1125841,0.00013695,2]
[361234573,1747380638367,-203.64228354,0.00013695,2]
[361234575,1747380638383,-295.76635828,0.00013695,2]
[361234576,1747380638393,-21056.75454446,0.00013696,2]
[361234577,1747380638404,-5212.27419172,0.00013696,2]
[361234783,1747381832609,-616.41500233,0.00012072,2]
[361234784,1747381832667,-4383.58499767,0.00012072,2]
[361234785,1747381832677,-300.0,0.00012648,2]
[361234787,1747381832687,-300.0,0.00012649,2]
[361234789,1747381832696,-300.0,0.00012649,2]
[361234791,1747381832706,-1200.0,0.00012649,2]
[361234793,1747381832716,-300.0,0.00012649,2]
[361234795,1747381832725,-300.0,0.00012649,2]
[361234797,1747381832734,-24900.0,0.0001265,2]
[361234799,1747381832744,-2691.5375962,0.00012694,2]
[361234805,1747381832795,-250.0,0.00012696,2]
[361234806,1747381832804,-437.36652355,0.0001333,2]
[361234807,1747381832814,-157.828059,0.00013558,2]
[361234808,1747381832823,-155.674134,0.00013558,2]
[361234809,1747381832833,-489.74597494,0.00013688,2]
[361234810,1747381832842,-500.0,0.00013688,2]
[361234811,1747381832852,-500.0,0.00013688,2]
[361234812,1747381832862,-506.39409455,0.00013688,2]
[361234813,1747381832872,-308.67953029,0.00013688,2]
[361234814,1747381832881,-500.0,0.00013688,2]
[361234815,1747381832891,-500.0,0.00013688,2]
[361234816,1747381832900,-500.0,0.00013688,2]
[361234817,1747381832909,-500.0,0.00013688,2]
[361234818,1747381832918,-500.0,0.00013688,2]
[361234819,1747381832927,-500.0,0.00013688,2]
[361234820,1747381832937,-500.0,0.00013688,2]
[361234821,1747381832946,-500.0,0.00013688,2]
[361234822,1747381832955,-500.0,0.00013688,2]
[361234823,1747381832964,-500.0,0.00013688,2]
[361234824,1747381832974,-500.0,0.00013688,2]
[361234825,1747381832984,-317.07946435,0.00013688,2]
[361234826,1747381832993,-500.0,0.00013688,2]
[361234827,1747381833003,-500.0,0.00013688,2]
[361234828,1747381833013,-500.0,0.00013688,2]
[361234829,1747381833023,-500.0,0.00013688,2]
[361234831,1747381833033,-500.0,0.00013688,2]
[361234832,1747381833042,-360.50199384,0.00013688,2]
[361234834,1747381833052,-5262.89439548,0.00013689,2]
[361234838,1747381833074,-569.45124166,0.00013689,2]
[361234840,1747381833087,-851.02316454,0.00013689,2]
[361234882,1747381838533,-4606.44878058,0.00013689,2]
[361234885,1747381838580,-11143.98344867,0.00013689,2]
[361234886,1747381838589,-155.674134,0.00013693,3]
[361234887,1747381838599,-164.038,0.00013695,2]
[361234888,1747381838609,-500.0,0.00013695,2]
[361234890,1747381838620,-500.0,0.00013695,2]
[361234891,1747381838630,-500.0,0.00013695,2]
[361234892,1747381838640,-500.0,0.00013695,2]
[361234893,1747381838649,-522.33417323,0.00013695,2]
[361234894,1747381838660,-500.0,0.00013695,2]
[361234895,1747381838670,-500.0,0.00013695,2]
[361234896,1747381838680,-500.0,0.00013695,2]
[361234897,1747381838689,-631.40918227,0.00013695,2]
[361234898,1747381838699,-872.58946557,0.00013696,2]
[361234952,1747381840939,-572.325,0.00013696,2]
[361234982,1747381844383,-18266.67842112,0.00013696,2]
[361234983,1747381844395,-44773.05109211,0.00013696,2]
[361235023,1747381846706,-6449.99982498,0.00013696,2]
[361235024,1747381846718,-9062.5000015,0.00013696,2]
[361235025,1747381846731,-2532.24964911,0.00013696,2]
[361235027,1747381965021,735.0,0.00027448,30]
[361235031,1747382551618,200.0,0.00026167,120]
[361235037,1747382949140,242.05168923,0.000273,120]
[361235038,1747382971138,200.0,0.0002621,120]
[361235050,1747383031996,-5000.0,0.00012097,14]
[361235051,1747383032004,-300.0,0.00012218,2]
[361235052,1747383032013,-300.0,0.00012219,2]
[361235053,1747383032021,-300.0,0.00012219,2]
[361235054,1747383032029,-300.0,0.00012219,2]
[361235055,1747383032037,-300.0,0.00012219,2]
[361235056,1747383032045,-1200.0,0.00012219,2]
[361235057,1747383032053,-24900.0,0.0001222,2]
[361235058,1747383032065,-4000.0,0.000125,2]
[361235059,1747383032074,-163.59994443,0.00012597,2]
[361235060,1747383032083,-250.0,0.00012697,2]
[361235061,1747383032093,-1000.0,0.00013,2]
[361235062,1747383032103,-316.9921229,0.00013,2]
[361235063,1747383032111,-151.0,0.00013122,2]
[361235064,1747383032120,-207.4,0.00013122,2]
[361235065,1747383032132,-523.43950601,0.00013229,2]
[361235066,1747383032141,-363.2556249,0.000133,2]
[361235067,1747383032151,-363.2556249,0.000133,2]
[361235068,1747383032160,-363.2556249,0.000133,2]
[361235069,1747383032169,-420.0,0.0001341,2]
[361235070,1747383032179,-420.0,0.0001341,2]
[361235071,1747383032188,-302.0,0.0001341,2]
[361235072,1747383032197,-409.0,0.0001341,2]
[361235073,1747383032206,-1680.0,0.0001344,2]
[361235074,1747383032215,-543.51246695,0.00013595,2]
[361235075,1747383032225,-500.0,0.00013595,2]
[361235076,1747383032234,-448.32819871,0.00013595,2]
[361235077,1747383032243,-500.0,0.00013595,2]
[361235078,1747383032252,-5365.48334946,0.00013596,2]
[361235079,1747383032262,-1891.5433219,0.00013597,2]
[361235080,1747383032274,-3473.94002754,0.00013597,2]
[361235081,1747383032284,-5365.48334944,0.00013597,2]
[361235082,1747383032293,-5365.48334944,0.00013598,2]
[361235083,1747383032303,-164.039,0.00013598,2]
[361235084,1747383032312,-5365.48334944,0.00013598,2]
[361235085,1747383032321,-212.26722696,0.00013615,2]
[361235086,1747383032330,-160.0,0.00013615,2]
[361235087,1747383032339,-160.0,0.00013615,2]
[361235088,1747383032350,-160.0,0.00013687,2]
[361235089,1747383032359,-12631.88158148,0.00013687,2]
[361235090,1747383032368,-151.0,0.00013688,2]